bitfinex/quotes_SOLUSD_20241115
["timestamp","ask_amount","ask_price","bid_price","bid_amount"]
[1731695624986,20.0,210.57,210.48,11.8776]
[1731695625402,4.7492,210.56,210.48,11.8776]
[1731695625708,0.12549,210.55,210.44,16.6315]
[1731695625911,4.7492,210.56,210.45,23.81684919]
[1731695626286,4.7492,210.56,210.44,40.44834919]
[1731695626797,4.7492,210.56,210.47,23.81684919]
[1731695627313,4.7492,210.56,210.46,23.81684919]
[1731695627493,4.7492,210.56,210.47,23.81684919]
[1731695627693,6.2301,210.58,210.52,23.81684919]
[1731695628300,4.7486,210.59,210.53,23.81684919]
[1731695628804,20.9927,210.61,210.53,28.56674919]
[1731695629008,20.9927,210.61,210.55,23.81684919]
[1731695629490,20.9927,210.61,210.54,47.59373319]
[1731695629688,20.9927,210.61,210.55,23.81684919]
[1731695629913,20.9927,210.61,210.56,23.81684919]
[1731695630213,16.2445,210.61,210.55,23.81684919]
[1731695631306,16.2445,210.61,210.55,28.56624919]
[1731695632616,20.9926,210.61,210.54,35.651084]
[1731695633118,20.9926,210.61,210.54,40.400684]
[1731695633507,20.0,210.6,210.5,11.8762]
[1731695633824,20.0,210.6,210.46,11.8785]
[1731695633825,0.12549,210.59,210.46,11.8785]
[1731695633991,0.12549,210.57,210.46,11.8785]
[1731695634489,4.7494,210.55,210.43,4.7521]
[1731695634691,21.4533,210.53,210.43,4.7521]
[1731695634907,21.4533,210.53,210.42,11.8808]
[1731695634908,0.12549,210.51,210.42,11.8808]
[1731695635512,0.12549,210.51,210.4,0.09367462]
[1731695636011,0.12549,210.51,210.4,4.84637462]
[1731695636621,4.7505,210.5,210.4,4.84637462]
[1731695637499,0.21916462,210.49,210.4,0.09367462]
[1731695637910,20.0,210.47,210.4,0.09367462]
[1731695638801,20.0,210.45,210.4,0.09367462]
[1731695639618,16.17979,210.44,210.4,0.09367462]
[1731695639794,6.18739,210.42,210.4,0.09367462]
[1731695639996,20.21916462,210.41,210.4,0.09367462]
[1731695640404,0.21916462,210.4,210.33,0.09367462]
[1731695640598,6.0619,210.42,210.34,23.81684919]
[1731695641016,7.26283774,210.47,210.33,16.73387462]
[1731695641017,24.7514,210.47,210.4,23.81684919]
[1731695641219,4.7514,210.47,210.41,23.81684919]
[1731695641424,22.1162,210.49,210.44,47.59373319]
[1731695641717,101.67972836,210.54,210.44,47.59373319]
[1731695641718,4.7501,210.52,210.45,4.7517]
[1731695641919,4.7501,210.52,210.43,11.8801]
[1731695642103,4.7501,210.52,210.43,16.6322]
[1731695642299,4.7501,210.52,210.43,40.44904919]
[1731695642618,4.7501,210.52,210.44,23.776884]
[1731695642925,16.0543,210.54,210.44,47.59373319]
[1731695643104,16.0543,210.54,210.47,23.81684919]
[1731695643421,20.8041,210.54,210.44,47.59373319]
[1731695643607,20.8041,210.54,210.46,23.776884]
[1731695643810,16.0543,210.54,210.48,23.81684919]
[1731695644321,4.7489,210.58,210.52,23.81684919]
[1731695644506,15.585,210.6,210.53,23.776884]
[1731695645091,22.84783774,210.65,210.54,23.81684919]
[1731695645294,15.585,210.65,210.55,47.59373319]
[1731695645520,15.585,210.65,210.58,23.81684919]
[1731695646019,20.3323,210.65,210.56,35.68994919]
[1731695646230,0.09367462,210.64,210.53,4.7498]
[1731695646520,0.09367462,210.64,210.51,11.8758]
[1731695646703,20.34465462,210.64,210.51,11.8758]
[1731695647217,20.34465462,210.64,210.52,47.59373319]
[1731695647412,20.34465462,210.64,210.52,23.776884]
[1731695647618,0.34465462,210.62,210.51,11.8758]
[1731695647813,0.34465462,210.62,210.47,23.81684919]
[1731695647814,20.34465462,210.62,210.47,23.81684919]
[1731695648299,20.34465462,210.62,210.48,23.81684919]
[1731695648913,0.34465462,210.6,210.48,28.56774919]
[1731695649121,20.34465462,210.6,210.48,28.56774919]
[1731695649626,20.34465462,210.6,210.49,47.59373319]
[1731695649813,4.7481,210.61,210.52,23.81684919]
[1731695650015,4.7481,210.61,210.53,23.81684919]
[1731695650322,0.09367462,210.6,210.49,23.776884]
[1731695650493,4.7481,210.61,210.5,23.81684919]
[1731695650695,4.7477,210.63,210.55,23.81684919]
[1731695650898,20.3323,210.65,210.57,23.81684919]
[1731695651117,20.3323,210.65,210.56,23.776884]
[1731695651910,0.09367462,210.64,210.53,4.7498]
[1731695652428,0.21916462,210.64,210.53,4.7498]
[1731695652747,0.21916462,210.62,210.52,23.776884]
[1731695653018,4.7481,210.61,210.52,28.526884]
[1731695653208,4.7481,210.61,210.52,4.75]
[1731695653413,4.7478,210.63,210.53,23.776884]
[1731695653610,20.0,210.64,210.55,23.776884]
[1731695653814,20.0,210.64,210.57,23.776884]
[1731695654024,20.3322,210.65,210.57,23.776884]
[1731695655103,15.585,210.65,210.57,52.34253319]
[1731695655323,15.585,210.65,210.57,64.21503319]
[1731695655624,166.41821677,210.71,210.57,64.21503319]
[1731695655625,4.7457,210.72,210.64,23.81684919]
[1731695656006,36.3141887,210.77,210.7,23.81684919]
[1731695656228,4.7443,210.78,210.69,23.81684919]
[1731695656431,4.7443,210.78,210.69,23.776884]
[1731695656720,4.7443,210.78,210.68,23.776884]
[1731695656900,22.6062,210.81,210.68,28.523184]
[1731695656901,4.83747462,210.8,210.68,28.523184]
[1731695657101,24.83747462,210.8,210.68,28.523184]
[1731695657308,24.7438,210.8,210.68,28.523184]
[1731695657527,0.09367462,210.79,210.68,52.34003319]
[1731695658311,4.7442,210.78,210.68,52.34003319]
[1731695658525,4.7442,210.78,210.68,28.523184]
[1731695658704,4.7442,210.78,210.68,52.34003319]
[1731695659100,4.7442,210.78,210.69,23.81684919]
[1731695659333,4.7442,210.78,210.68,64.20633319]
[1731695660230,22.6062,210.81,210.68,64.20633319]
[1731695660231,5.08845462,210.8,210.68,64.20633319]
[1731695660437,24.7438,210.8,210.7,23.81684919]
[1731695660730,4.7438,210.8,210.72,23.776884]
[1731695660912,4.7438,210.8,210.71,23.776884]
[1731695661628,4.7438,210.8,210.71,4.7457]
[1731695661816,24.7438,210.8,210.72,23.776884]
[1731695662218,24.7438,210.8,210.68,11.8663]
[1731695662425,24.7438,210.8,210.69,28.522984]
[1731695663933,24.7438,210.8,210.69,40.388684]
[1731695664721,24.7438,210.8,210.69,64.20553319]
[1731695664940,24.7438,210.8,210.71,64.20413319]
[1731695665151,24.7438,210.8,210.73,23.81684919]
[1731695665524,24.7438,210.8,210.72,47.59373319]
[1731695666031,24.7438,210.8,210.74,23.776884]
[1731695666223,20.0,210.8,210.74,23.776884]
[1731695667135,24.7439,210.8,210.67,35.68354919]
[1731695667331,24.7439,210.8,210.68,47.59373319]
[1731695667649,24.7439,210.8,210.69,23.81684919]
[1731695667821,24.7439,210.8,210.7,23.776884]
[1731695668019,24.7439,210.8,210.72,23.776884]
[1731695668241,24.7439,210.8,210.71,16.6104]
[1731695668540,24.7439,210.8,210.71,11.8646]
[1731695669644,24.7439,210.8,210.71,16.6104]
[1731695670023,0.09367462,210.78,210.57,25.248659]
[1731695670343,0.09367462,210.76,210.58,23.81684919]
[1731695670640,4.7439,210.8,210.7,23.81684919]
[1731695670846,4.7439,210.8,210.61,0.1]
[1731695670847,4.7439,210.8,210.72,23.81684919]
[1731695671040,4.7427,210.85,210.76,23.81684919]
[1731695671724,4.7427,210.85,210.77,23.776884]
[1731695673419,4.7427,210.85,210.75,23.81684919]
[1731695673730,4.7427,210.85,210.75,23.776884]
[1731695674848,4.7427,210.85,210.75,28.521684]
[1731695675031,4.7427,210.85,210.75,52.33853319]
[1731695675236,4.7427,210.85,210.75,23.776884]
[1731695676441,0.34465462,210.84,210.72,23.81684919]
[1731695676627,20.34465462,210.82,210.7,11.8652]
[1731695676947,20.34465462,210.82,210.66,23.81684919]
[1731695677337,20.34465462,210.82,210.64,23.81684919]
[1731695677549,20.34465462,210.8,210.66,11.8673]
[1731695677929,20.34465462,210.8,210.66,35.68414919]
[1731695678230,20.0,210.8,210.68,23.81684919]
[1731695678442,20.0,210.8,210.67,23.81684919]
[1731695678747,4.744,210.79,210.68,23.776884]
[1731695678948,4.744,210.79,210.7,47.59373319]
[1731695679125,4.744,210.79,210.69,23.81684919]
[1731695679555,4.744,210.79,210.7,23.776884]
[1731695680335,4.744,210.79,210.71,23.776884]
[1731695681548,6.5962,210.81,210.74,23.81684919]
[1731695681549,11.3399,210.81,210.74,23.81684919]
[1731695681852,11.3399,210.81,210.71,23.776884]
[1731695682069,11.3399,210.81,210.74,4.7451]
[1731695682254,11.3399,210.81,210.75,23.776884]
[1731695682554,4.7424,210.86,210.77,23.776884]
[1731695682757,4.7424,210.86,210.74,16.608]
[1731695682959,0.09367462,210.85,210.71,23.81684919]
[1731695683135,0.09367462,210.85,210.7,16.6109]
[1731695683747,0.34465462,210.85,210.7,16.6109]
[1731695684253,0.34465462,210.85,210.68,23.81684919]
[1731695684254,20.34465462,210.83,210.68,4.7464]
[1731695684751,20.34465462,210.83,210.68,28.56324919]
[1731695685359,0.12549,210.81,210.68,40.42954919]
[1731695685546,0.12549,210.81,210.69,23.776884]
[1731695685869,0.12549,210.81,210.69,47.59373319]
[1731695686446,4.7433,210.82,210.69,47.59373319]
[1731695686639,4.7433,210.82,210.71,23.776884]
[1731695688738,4.7433,210.82,210.71,28.522684]
[1731695688941,20.12549,210.79,210.63,4.7475]
[1731695689169,20.0,210.79,210.67,23.81684919]
[1731695689347,144.7,210.84,210.63,4.7475]
[1731695689348,7.40451968,210.87,210.78,23.81684919]
[1731695689586,4.7423,210.87,210.79,23.81684919]
[1731695689746,4.7423,210.87,210.77,23.81684919]
[1731695690063,4.7423,210.87,210.74,23.81684919]
[1731695690361,4.7423,210.87,210.75,47.59373319]
[1731695690770,4.7423,210.87,210.75,52.33853319]
[1731695691439,0.09367462,210.86,210.73,11.8633]
[1731695691636,20.09367462,210.86,210.74,23.776884]
[1731695691837,20.09367462,210.86,210.73,11.8633]
[1731695692270,0.09367462,210.84,210.73,11.8633]
[1731695692943,4.7431,210.83,210.73,11.8633]
[1731695693156,4.7431,210.83,210.73,35.68014919]
[1731695693452,4.7431,210.83,210.74,23.776884]
[1731695694966,4.7431,210.83,210.73,11.8633]
[1731695695155,4.7431,210.83,210.72,23.776884]
[1731695695561,4.7431,210.83,210.73,23.81684919]
[1731695696076,4.7427,210.85,210.74,28.521884]
[1731695696246,0.09367462,210.84,210.74,23.776884]
[1731695696560,4.7427,210.85,210.75,23.776884]
[1731695698061,20.34465462,210.84,210.73,23.776884]
[1731695698266,0.09367462,210.83,210.73,23.776884]
[1731695698461,0.25098,210.82,210.7,23.81684919]
[1731695698676,20.34465462,210.8,210.67,11.8667]
[1731695698967,20.34465462,210.8,210.63,4.7475]
[1731695698968,20.34465462,210.78,210.63,4.7475]
[1731695699145,20.25098,210.76,210.62,11.8692]
[1731695699346,20.34465462,210.74,210.59,4.7484]
[1731695699661,20.34465462,210.74,210.63,23.81684919]
[1731695699864,20.34465462,210.74,210.62,23.81684919]
[1731695700073,20.21916462,210.67,210.52,11.875]
[1731695700364,20.12549,210.58,210.46,11.8785]
[1731695700572,0.09367462,210.57,210.46,11.8785]
[1731695700745,20.12549,210.58,210.47,23.81684919]
[1731695701171,20.0,210.58,210.51,23.81684919]
[1731695701381,22.3284,210.59,210.54,23.81684919]
[1731695701545,6.6589,210.64,210.56,23.81684919]
[1731695701746,20.0,210.63,210.46,16.6299]
[1731695701955,4.7483,210.6,210.46,16.6299]
[1731695702454,20.34465462,210.59,210.46,16.6299]
[1731695702659,20.09367462,210.59,210.5,23.81684919]
[1731695702858,20.09367462,210.59,210.49,23.81684919]
[1731695703063,0.09367462,210.59,210.49,23.81684919]
[1731695703275,0.09367462,210.59,210.53,23.81684919]
[1731695703570,0.09367462,210.59,210.57,23.91052381]
[1731695704171,0.09367462,210.59,210.58,52.43610781]
[1731695704551,0.09367462,210.59,210.58,28.61925862]
[1731695705365,0.09367462,210.59,210.58,52.56159781]
[1731695706169,0.09367462,210.59,210.58,72.68708781]
[1731695706475,7.28550321,210.71,210.61,20.25098]
[1731695706644,7.28550321,210.71,210.64,23.81684919]
[1731695707269,7.28550321,210.71,210.65,23.81684919]
[1731695707577,7.28550321,210.71,210.65,0.09367462]
[1731695707756,7.28550321,210.71,210.66,4.7469]
[1731695708067,7.28550321,210.71,210.62,4.7478]
[1731695708068,12.03150321,210.71,210.62,4.7478]
[1731695708270,12.03150321,210.71,210.6,4.7482]
[1731695708485,0.34465462,210.7,210.54,18.4013]
[1731695708649,0.34465462,210.7,210.54,11.8739]
[1731695709066,20.34465462,210.7,210.54,11.8739]
[1731695709349,0.09367462,210.67,210.54,16.6235]
[1731695709546,0.09367462,210.67,210.49,18.1407]
[1731695709750,6.1363,210.64,210.5,4.7504]
[1731695709973,6.1363,210.64,210.54,23.81684919]
[1731695710157,6.1363,210.64,210.55,0.09367462]
[1731695710367,6.1363,210.64,210.51,23.81684919]
[1731695710563,6.1363,210.64,210.5,64.19654919]
[1731695710759,6.1363,210.64,210.52,0.09367462]
[1731695711173,4.7476,210.63,210.54,0.09367462]
[1731695711372,21.4817,210.69,210.62,23.81684919]
[1731695711677,21.4817,210.69,210.54,47.59373319]
[1731695711678,26.2281,210.69,210.65,23.81684919]
[1731695712053,21.4817,210.69,210.65,23.81684919]
[1731695713466,21.4817,210.69,210.62,23.81684919]
[1731695713666,21.4817,210.69,210.63,23.81684919]
[1731695713966,21.4817,210.69,210.66,23.81684919]
[1731695714161,21.4817,210.69,210.64,23.81684919]
[1731695714482,21.4817,210.69,210.6,23.81684919]
[1731695715477,21.4817,210.69,210.61,47.59373319]
[1731695715663,21.4817,210.69,210.61,23.776884]
[1731695715870,20.12549,210.68,210.58,23.81684919]
[1731695716165,21.4817,210.69,210.6,23.81684919]
[1731695716472,21.4817,210.69,210.65,23.81684919]
[1731695716673,21.4817,210.69,210.64,23.81684919]
[1731695717580,15.3918,210.69,210.67,23.81684919]
[1731695717879,15.3918,210.69,210.66,23.81684919]
[1731695719090,15.3918,210.69,210.6,0.09367462]
[1731695719091,15.3918,210.69,210.65,23.81684919]
[1731695719271,15.3918,210.69,210.67,23.81684919]
[1731695719471,189.65918918,210.74,210.68,23.81684919]
[1731695719770,189.65918918,210.74,210.69,23.81684919]
[1731695719954,189.65918918,210.74,210.68,23.81684919]
[1731695720153,189.65918918,210.74,210.69,23.81684919]
[1731695720354,189.65918918,210.74,210.7,23.81684919]
[1731695720557,189.65918918,210.74,210.71,23.81684919]
[1731695720757,189.65918918,210.74,210.7,23.81684919]
[1731695720982,189.65918918,210.74,210.68,23.81684919]
[1731695721284,189.65918918,210.74,210.64,16.6159]
[1731695721285,29.82069487,210.74,210.69,23.81684919]
[1731695721584,29.82069487,210.74,210.71,23.81684919]
[1731695721783,21.2783,210.79,210.73,23.81684919]
[1731695721968,6.1956,210.85,210.78,23.81684919]
[1731695722285,6.1956,210.85,210.8,23.81684919]
[1731695722881,6.1956,210.85,210.81,23.81684919]
[1731695723062,6.1956,210.85,210.82,23.81684919]
[1731695723258,16.1496,210.87,210.83,23.81684919]
[1731695723957,16.1496,210.87,210.8,16.6032]
[1731695723958,16.1496,210.87,210.82,23.81684919]
[1731695724183,16.1496,210.87,210.83,23.81684919]
[1731695725193,16.1496,210.87,210.82,23.81684919]
[1731695725483,16.1496,210.87,210.84,23.81684919]
[1731695725989,16.1496,210.87,210.8,11.8595]
[1731695726159,16.1496,210.87,210.72,23.7276]
[1731695726160,20.892,210.87,210.74,11.8628]
[1731695726360,23.87055862,210.86,210.74,11.8628]
[1731695726768,20.12549,210.85,210.74,11.8628]
[1731695726959,23.776884,210.84,210.74,11.8628]
[1731695727160,4.86859,210.83,210.74,11.8628]
[1731695727678,0.12549,210.84,210.74,35.67964919]
[1731695727880,0.12549,210.84,210.74,11.8628]
[1731695729188,24.743,210.84,210.74,16.6079]
[1731695729364,4.7426,210.86,210.78,23.81684919]
[1731695729573,16.1496,210.87,210.78,23.81684919]
[1731695729761,16.1496,210.87,210.79,23.81684919]
[1731695729962,16.1496,210.87,210.8,23.81684919]
[1731695730363,16.1496,210.87,210.82,23.81684919]
[1731695730871,16.1496,210.87,210.76,23.81684919]
[1731695730872,0.4599052,210.89,210.85,23.81684919]
[1731695731081,0.4599052,210.89,210.85,4.7426]
[1731695731286,0.4599052,210.89,210.83,16.6006]
[1731695731496,0.4599052,210.89,210.78,35.67704919]
[1731695731666,0.4599052,210.89,210.78,11.8602]
[1731695731865,0.4599052,210.89,210.79,23.81684919]
[1731695732087,0.4599052,210.89,210.78,35.67704919]
[1731695732387,24.027864,210.88,210.78,11.8602]
[1731695732764,0.25098,210.88,210.76,4.7447]
[1731695733160,4.7422,210.87,210.75,23.81684919]
[1731695734093,4.7422,210.87,210.77,23.81684919]
[1731695734389,4.7422,210.87,210.78,40.42174919]
[1731695734624,4.7422,210.87,210.79,23.81684919]
[1731695734771,4.7422,210.87,210.78,16.6049]
[1731695735296,4.7422,210.87,210.78,11.8607]
[1731695735662,4.7422,210.87,210.74,47.54274919]
[1731695735663,0.25098,210.86,210.74,4.745]
[1731695735982,21.7897,210.85,210.74,4.745]
[1731695736287,4.7429,210.84,210.73,16.6084]
[1731695736673,4.7429,210.84,210.73,40.42524919]
[1731695737065,21.7897,210.85,210.78,23.81684919]
[1731695737278,21.7897,210.85,210.8,23.81684919]
[1731695737665,15.6722,210.85,210.8,23.81684919]
[1731695737978,4.7421,210.88,210.82,23.81684919]
[1731695738166,0.4599052,210.89,210.82,23.81684919]
[1731695738382,5.2017052,210.89,210.82,28.56014919]
[1731695738588,5.2017052,210.89,210.78,4.7441]
[1731695738777,5.2017052,210.89,210.76,23.81684919]
[1731695738778,5.2017052,210.89,210.76,4.7445]
[1731695739176,0.09367462,210.87,210.75,35.67874919]
[1731695739476,0.25098,210.86,210.75,40.42364919]
[1731695739799,0.25098,210.81,210.7,11.8646]
[1731695740367,4.7438,210.8,210.7,11.8646]
[1731695740903,4.7438,210.8,210.72,23.81684919]
[1731695741068,4.7435,210.82,210.75,23.81684919]
[1731695741269,15.0494,210.84,210.77,23.81684919]
[1731695741270,19.7924,210.84,210.77,23.81684919]
[1731695741574,15.0494,210.84,210.79,23.81684919]
[1731695741893,11.1728,210.88,210.78,23.81684919]
[1731695742197,11.1728,210.88,210.81,23.81684919]
[1731695742399,11.1728,210.88,210.8,23.81684919]
[1731695742580,6.4307,210.88,210.81,23.81684919]
[1731695742891,16.2054052,210.89,210.82,23.81684919]
[1731695743193,16.2054052,210.89,210.84,23.81684919]
[1731695743577,16.2054052,210.89,210.83,23.81684919]
[1731695743981,0.4599052,210.89,210.88,23.81684919]
[1731695744605,0.4599052,210.89,210.87,23.81684919]
[1731695744788,0.4599052,210.89,210.87,38.57929593]
[1731695745186,0.4599052,210.89,210.88,38.57929593]
[1731695745371,0.4599052,210.89,210.88,38.70478593]
[1731695745777,0.4599052,210.89,210.88,38.57929593]
[1731695747108,0.4599052,210.89,210.87,38.57929593]
[1731695747288,0.4599052,210.89,210.81,38.57929593]
[1731695747289,5.2018052,210.89,210.81,38.57929593]
[1731695747683,5.2018052,210.89,210.8,38.57929593]
[1731695747879,20.9995052,210.89,210.79,38.57929593]
[1731695748120,20.9995052,210.89,210.78,38.57929593]
[1731695748313,23.902374,210.88,210.76,38.57929593]
[1731695748479,43.902374,210.86,210.72,38.57929593]
[1731695748680,43.902374,210.86,210.73,38.57929593]
[1731695748913,23.44846462,210.87,210.72,4.7454]
[1731695748914,11.3737,210.87,210.78,38.57929593]
[1731695749082,11.3737,210.87,210.81,38.57929593]
[1731695749282,16.2576052,210.89,210.82,38.57929593]
[1731695749483,20.9994052,210.89,210.81,38.57929593]
[1731695749706,20.9994052,210.89,210.76,38.57929593]
[1731695749881,0.12549,210.88,210.76,38.57929593]
[1731695750080,0.09367462,210.87,210.73,38.57929593]
[1731695750310,0.12549,210.86,210.73,38.57929593]
[1731695750492,4.7427,210.85,210.73,38.57929593]
[1731695750897,4.7427,210.85,210.7,38.57929593]
[1731695750898,0.09367462,210.83,210.7,38.57929593]
[1731695751093,0.09367462,210.83,210.67,50.44579593]
[1731695751296,23.902374,210.79,210.66,38.57929593]
[1731695751488,23.902374,210.77,210.64,43.32649593]
[1731695751695,24.027864,210.75,210.62,50.44849593]
[1731695752013,20.0,210.76,210.64,38.57929593]
[1731695752505,20.0,210.76,210.65,38.57929593]
[1731695752805,4.7449,210.75,210.66,38.57929593]
[1731695753012,4.7449,210.75,210.65,38.57929593]
[1731695754206,4.7449,210.75,210.63,55.19599593]
[1731695754508,4.7449,210.75,210.63,11.8691]
[1731695754685,4.7449,210.75,210.56,6.4746]
[1731695754686,23.902374,210.74,210.61,43.32719593]
[1731695755306,23.902374,210.74,210.61,38.57929593]
[1731695755514,23.902374,210.74,210.62,38.57929593]
[1731695755692,38.66981609,210.68,210.61,38.79530609]
[1731695756193,38.66981609,210.69,210.62,38.66981609]
[1731695757393,43.41601609,210.7,210.63,38.66981609]
[1731695757594,4.7457,210.72,210.66,38.66981609]
[1731695758195,38.66981609,210.71,210.64,38.66981609]
[1731695758392,38.66981609,210.71,210.63,0.12549]
[1731695758393,38.66981609,210.7,210.63,38.66981609]
[1731695758597,38.66981609,210.69,210.62,50.53951609]
[1731695758987,38.66981609,210.67,210.62,11.8697]
[1731695759193,38.66981609,210.67,210.61,0.12549]
[1731695759714,38.66981609,210.67,210.6,43.51169071]
[1731695760013,43.41661609,210.67,210.6,43.51169071]
[1731695760209,43.41661609,210.67,210.6,38.76349071]
[1731695760706,45.13251609,210.71,210.64,38.66981609]
[1731695760908,4.7458,210.71,210.65,38.66981609]
[1731695761599,4.7469,210.66,210.6,50.63429071]
[1731695761811,4.7469,210.66,210.6,0.09367462]
[1731695761812,38.66981609,210.64,210.6,0.09367462]
[1731695762105,38.66981609,210.61,210.6,0.09367462]
[1731695762722,38.66981609,210.62,210.6,0.09367462]
[1731695763013,38.66981609,210.61,210.6,0.09367462]
[1731695763713,43.41791609,210.61,210.6,0.09367462]
[1731695764100,67.32029009,210.61,210.6,0.09367462]
[1731695764512,0.12549,210.6,210.55,0.09367462]
[1731695764737,62.57219009,210.56,210.55,0.09367462]
[1731695765397,62.79135471,210.56,210.55,0.09367462]
[1731695765798,67.54055471,210.56,210.55,0.09367462]
[1731695766316,87.54055471,210.56,210.55,0.09367462]
[1731695766493,142.1577708,210.56,210.55,0.09367462]
[1731695766698,44.12153862,210.55,210.4,43.42251609]
[1731695766910,38.66981609,210.5,210.43,38.66981609]
[1731695767122,38.66981609,210.5,210.4,16.6348]
[1731695767123,23.83717531,210.5,210.4,16.6348]
[1731695767297,23.83717531,210.5,210.43,23.83717531]
[1731695768116,23.83717531,210.48,210.42,4.7522]
[1731695768318,23.83717531,210.49,210.42,28.58937531]
[1731695768697,23.83717531,210.48,210.41,23.96266531]
[1731695769017,20.6967,210.56,210.47,23.83717531]
[1731695769235,23.83717531,210.54,210.47,23.83717531]
[1731695769590,23.83717531,210.53,210.46,23.83717531]
[1731695769796,4.7501,210.53,210.43,23.83717531]
[1731695770096,23.83717531,210.5,210.43,23.83717531]
[1731695770308,23.83717531,210.51,210.44,23.83717531]
[1731695770605,23.83717531,210.5,210.43,23.83717531]
[1731695771202,4.7501,210.53,210.41,0.12549]
[1731695771203,23.83717531,210.48,210.41,23.96266531]
[1731695771399,0.34465462,210.52,210.33,0.09367462]
[1731695771600,23.83717531,210.44,210.37,28.59057531]
[1731695771794,23.83717531,210.42,210.35,35.72157531]
[1731695772106,23.83717531,210.41,210.35,11.8844]
[1731695772501,23.83717531,210.41,210.35,16.6383]
[1731695772822,23.83717531,210.39,210.33,4.84787462]
[1731695773022,23.83717531,210.4,210.33,23.93084993]
[1731695773216,23.83717531,210.38,210.33,0.09367462]
[1731695773826,4.752,210.44,210.33,0.09367462]
[1731695773827,23.83717531,210.34,210.33,0.09367462]
[1731695773998,28.59107531,210.36,210.33,0.09367462]
[1731695774322,15.1028,210.45,210.33,0.09367462]
[1731695774323,23.83717531,210.41,210.33,4.84797462]
[1731695774698,4.2771,210.42,210.33,4.84797462]
[1731695775307,15.1028,210.45,210.33,4.84797462]
[1731695775514,4.2767,210.44,210.34,23.776884]
[1731695775726,23.83717531,210.43,210.37,23.776884]
[1731695776525,4.2771,210.42,210.37,23.776884]
[1731695776714,4.277,210.43,210.39,47.61405931]
[1731695776916,4.2766,210.45,210.39,47.61405931]
[1731695777116,23.83717531,210.43,210.36,23.83717531]
[1731695777417,23.83717531,210.41,210.38,23.776884]
[1731695777595,23.83717531,210.4,210.33,35.81684993]
[1731695777796,23.83717531,210.41,210.34,47.61405931]
[1731695778228,23.83717531,210.39,210.34,23.776884]
[1731695778525,14.9679,210.45,210.34,23.776884]
[1731695778526,23.83717531,210.4,210.34,23.776884]
[1731695778909,23.83717531,210.45,210.39,23.83717531]
[1731695779110,28.11377531,210.45,210.39,23.83717531]
[1731695779320,4.2766,210.45,210.34,23.776884]
[1731695779657,0.34465462,210.44,210.34,23.776884]
[1731695779828,4.2766,210.45,210.34,23.776884]
[1731695780001,23.83717531,210.43,210.37,23.776884]
[1731695780411,23.83717531,210.42,210.36,23.776884]
[1731695780609,23.83717531,210.41,210.36,23.776884]
[1731695780905,28.11457531,210.41,210.35,23.776884]
[1731695781312,28.11457531,210.41,210.34,23.776884]
[1731695781313,23.83717531,210.37,210.34,23.776884]
[1731695781620,23.83717531,210.35,210.33,0.09367462]
[1731695782214,23.83717531,210.37,210.33,0.09367462]
[1731695783412,23.83717531,210.36,210.33,0.09367462]
[1731695783627,23.83717531,210.37,210.33,0.09367462]
[1731695783929,23.83717531,210.34,210.33,0.09367462]
[1731695784517,23.83717531,210.34,210.22,4.7567]
[1731695784715,23.83717531,210.31,210.22,16.649]
[1731695785125,23.83717531,210.31,210.24,23.83717531]
[1731695785126,23.83717531,210.3,210.24,23.83717531]
[1731695785313,23.83717531,210.3,210.23,23.83717531]
[1731695785523,23.83717531,210.34,210.28,23.83717531]
[1731695785825,23.83717531,210.4,210.33,47.61405931]
[1731695786138,10.6928,210.43,210.33,47.61405931]
[1731695786139,10.6928,210.43,210.33,23.776884]
[1731695786326,23.83717531,210.38,210.33,23.776884]
[1731695786633,23.83717531,210.41,210.34,23.83717531]
[1731695786929,4.2771,210.42,210.36,23.83717531]
[1731695787113,4.2771,210.42,210.37,23.776884]
[1731695787717,23.83717531,210.4,210.35,23.776884]
[1731695787924,23.83717531,210.39,210.34,23.776884]
[1731695788235,23.83717531,210.38,210.31,47.61405931]
[1731695788528,23.83717531,210.38,210.31,52.36885931]
[1731695789029,10.6921,210.44,210.32,23.83717531]
[1731695789030,23.83717531,210.39,210.32,23.83717531]
[1731695789232,4.2777,210.4,210.35,23.83717531]
[1731695789430,4.2777,210.4,210.34,23.83717531]
[1731695789608,4.2777,210.4,210.35,23.776884]
[1731695790326,6.3987,210.46,210.35,47.61405931]